bitfinex-derivatives/quotes_BTCF0:USTF0_20241008
["timestamp","ask_amount","ask_price","bid_price","bid_amount"]
[1728389705742,0.23037235,62586.0,62585.0,0.002]
[1728389706833,0.201918,62586.0,62585.0,0.002]
[1728389710343,0.201918,62586.0,62585.0,0.081919]
[1728389710541,0.201918,62586.0,62585.0,0.079919]
[1728389710942,0.201918,62586.0,62585.0,0.078019]
[1728389711143,0.201918,62586.0,62585.0,0.076119]
[1728389712346,0.079924,62583.0,62582.0,0.079922]
[1728389712552,0.199924,62583.0,62582.0,0.079922]
[1728389713535,0.200924,62583.0,62582.0,0.079922]
[1728389713954,0.201924,62583.0,62582.0,0.079922]
[1728389714139,0.079925,62580.0,62579.0,0.10832853]
[1728389714339,0.199925,62580.0,62579.0,0.10832853]
[1728389715942,0.079929,62577.0,62576.0,0.110829]
[1728389716144,0.199929,62577.0,62576.0,0.110829]
[1728389716447,0.199929,62577.0,62576.0,0.13978591]
[1728389717441,0.201929,62577.0,62576.0,0.13978591]
[1728389718442,0.201929,62577.0,62576.0,0.10888591]
[1728389719944,0.201929,62577.0,62576.0,0.15669439]
[1728389721346,0.201929,62577.0,62576.0,0.15666889]
[1728389722243,0.201929,62577.0,62576.0,0.10888591]
[1728389722641,0.201929,62577.0,62576.0,0.02895691]
[1728389722947,0.201929,62577.0,62572.0,0.0312]
[1728389722948,0.079932,62575.0,62574.0,0.079933]
[1728389723147,0.199932,62575.0,62574.0,0.079933]
[1728389724153,0.200932,62575.0,62574.0,0.079933]
[1728389724953,0.201932,62575.0,62574.0,0.079933]
[1728389726054,0.002,62575.0,62574.0,0.079933]
[1728389726249,0.002,62575.0,62574.0,0.26366555]
[1728389726455,0.002,62575.0,62574.0,0.199933]
[1728389728054,0.002,62575.0,62574.0,1.040173]
[1728389729050,0.12,62583.0,62582.0,0.079923]
[1728389730249,0.200921,62583.0,62582.0,0.079923]
[1728389730461,0.201921,62583.0,62582.0,0.079923]
[1728389734152,0.562721,62583.0,62582.0,0.079923]
[1728389737764,0.562721,62583.0,62582.0,0.080923]
[1728389738960,0.562721,62583.0,62582.0,0.001]
[1728389739552,0.079929,62577.0,62576.0,0.04779853]
[1728389739759,0.07993,62576.0,62575.0,0.12772853]
[1728389739961,0.07993,62576.0,62575.0,0.04779853]
[1728389741768,0.08093,62576.0,62575.0,0.04779853]
[1728389742156,0.079932,62575.0,62574.0,0.12773153]
[1728389742359,0.079932,62575.0,62574.0,0.15582724]
[1728389742968,0.079932,62575.0,62574.0,0.10802871]
[1728389743367,0.080932,62575.0,62574.0,0.10802871]
[1728389744064,0.081932,62575.0,62574.0,0.10802871]
[1728389745672,0.081932,62575.0,62574.0,0.02809571]
[1728389745880,0.079936,62572.0,62571.0,0.079935]
[1728389746170,0.560736,62572.0,62571.0,0.079935]
[1728389747070,0.561736,62572.0,62571.0,0.079935]
[1728389747377,0.562736,62572.0,62571.0,0.079935]
[1728389749575,0.079937,62571.0,62570.0,0.03120365]
[1728389749871,0.199937,62571.0,62570.0,0.03120365]
[1728389750074,0.199937,62571.0,62570.0,0.11066081]
[1728389750573,0.199937,62571.0,62570.0,0.03120365]
[1728389750772,0.200937,62571.0,62570.0,0.03120365]
[1728389751072,0.200937,62571.0,62570.0,0.11114165]
[1728389751776,0.201937,62571.0,62570.0,0.11114165]
[1728389755069,0.081937,62571.0,62570.0,0.11114165]
[1728389755577,0.201937,62571.0,62570.0,0.11114165]
[1728389756370,0.081937,62571.0,62570.0,0.11114165]
[1728389756665,0.201937,62571.0,62570.0,0.11114165]
[1728389758371,0.122,62571.0,62570.0,0.11114165]
[1728389758767,0.002,62571.0,62570.0,0.11114165]
[1728389759078,0.002,62571.0,62570.0,0.1749325]
[1728389759281,0.002,62571.0,62570.0,0.11114165]
[1728389771986,0.002,62571.0,62570.0,0.31242267]
[1728389772490,0.081937,62571.0,62570.0,0.31242267]
[1728389774291,0.081937,62571.0,62570.0,0.31242276]
[1728389774987,0.081937,62571.0,62570.0,0.2329656]
[1728389775182,0.081937,62571.0,62570.0,0.31278403]
[1728389775385,0.081937,62571.0,62570.0,0.31278617]
[1728389775785,0.081937,62571.0,62570.0,0.11114165]
[1728389776790,0.002,62571.0,62570.0,0.11114165]
[1728389779694,0.002,62571.0,62570.0,0.19096008]
[1728389780209,0.002,62571.0,62570.0,0.11114165]
[1728389780907,0.3608,62586.0,62585.0,0.079919]
[1728389781104,0.12,62590.0,62589.0,0.079914]
[1728389781405,0.440709,62593.0,62592.0,0.07991]
[1728389781406,0.3616,62593.0,62592.0,0.07991]
[1728389781606,0.0008,62593.0,62592.0,0.07991]
[1728389781903,0.12,62595.0,62589.0,0.12]
[1728389782209,0.12,62595.0,62594.0,0.079907]
[1728389783408,0.121,62595.0,62594.0,0.079907]
[1728389783600,0.128,62595.0,62594.0,0.079907]
[1728389784208,0.122,62595.0,62594.0,0.081907]
[1728389785207,0.121,62595.0,62594.0,0.081907]
[1728389785413,0.122,62595.0,62594.0,0.081907]
[1728389785808,0.121,62595.0,62594.0,0.079907]
[1728389786009,0.121,62595.0,62594.0,0.10944248]
[1728389786314,0.122,62595.0,62594.0,0.10944248]
[1728389801109,0.002,62595.0,62594.0,0.10944248]
[1728389801906,0.002,62595.0,62594.0,1.18872248]
[1728389803416,0.00239694,62599.0,62598.0,0.079902]
[1728389803620,0.00239694,62599.0,62598.0,0.440702]
[1728389804517,0.00339694,62599.0,62598.0,0.440702]
[1728389804713,0.00439694,62599.0,62598.0,0.441702]
[1728389805613,0.00439694,62599.0,62598.0,0.48937328]
[1728389806409,0.00439694,62599.0,62598.0,0.441702]
[1728389806608,0.00439694,62599.0,62598.0,0.48937328]
[1728389807025,0.00439694,62599.0,62598.0,0.49137328]
[1728389807626,0.00439694,62599.0,62598.0,0.443702]
[1728389808815,0.002,62599.0,62598.0,1.522942]
[1728389809624,0.002,62599.0,62598.0,1.72451594]
[1728389810217,0.002,62599.0,62598.0,0.922942]
[1728389810817,0.002,62599.0,62598.0,1.522942]
[1728389811021,0.002,62599.0,62598.0,0.443702]
[1728389817130,0.002,62599.0,62598.0,0.922942]
[1728389817823,0.002,62599.0,62598.0,1.522942]
[1728389818124,0.002,62599.0,62598.0,1.586142]
[1728389818728,0.002,62599.0,62598.0,0.986142]
[1728389822430,0.002,62599.0,62598.0,1.586142]
[1728389825419,0.002,62599.0,62598.0,1.64980928]
[1728389825624,0.002,62599.0,62598.0,1.586142]
[1728389827228,0.002,62599.0,62598.0,0.986142]
[1728389827424,0.002,62599.0,62598.0,1.586142]
[1728389827622,0.002,62599.0,62598.0,0.986142]
[1728389827829,0.079884,62613.0,62611.0,0.079885]
[1728389828023,0.079884,62613.0,62612.0,0.079884]
[1728389828420,0.199878,62617.0,62612.0,0.079884]
[1728389828624,0.079881,62615.0,62614.0,0.079881]
[1728389829737,0.199881,62615.0,62614.0,0.079881]
[1728389829942,0.079886,62611.0,62610.0,0.079887]
[1728389830125,0.199886,62611.0,62610.0,0.079887]
[1728389830528,0.12,62611.0,62610.0,0.079887]
[1728389830727,0.079886,62611.0,62609.0,0.02853597]
[1728389830927,0.079886,62611.0,62610.0,0.079887]
[1728389831528,0.102886,62611.0,62610.0,0.079887]
[1728389831938,0.135386,62611.0,62610.0,0.079887]
[1728389837638,0.135386,62611.0,62609.0,0.02945119]
[1728389837639,0.0555,62611.0,62609.0,0.02945119]
[1728389837839,0.0555,62611.0,62603.0,0.3608]
[1728389837840,0.12,62610.0,62603.0,0.3608]
[1728389838045,0.07989,62608.0,62603.0,0.3608]
[1728389838239,0.0555,62611.0,62603.0,0.3608]
[1728389838240,0.079895,62604.0,62603.0,0.02925185]
[1728389838443,0.12,62604.0,62601.0,0.079898]
[1728389838647,0.05730671,62603.0,62598.0,0.12239518]
[1728389838949,0.13720271,62603.0,62602.0,0.079897]
[1728389840342,0.079896,62603.0,62602.0,0.079897]
[1728389840648,0.199896,62604.0,62599.0,0.04778669]
[1728389840850,0.12,62600.0,62599.0,0.04787369]
[1728389841148,0.079901,62599.0,62598.0,0.00539518]
[1728389841450,0.143201,62599.0,62591.0,0.04787664]
[1728389841744,0.07991,62592.0,62591.0,0.04787664]
[1728389841949,0.12,62593.0,62590.0,0.04787664]
[1728389842140,0.079914,62589.0,62586.0,0.04787664]
[1728389842445,0.079914,62589.0,62587.0,0.079916]
[1728389843040,0.079914,62589.0,62585.0,0.04787664]
[1728389843253,0.079914,62589.0,62588.0,0.079915]
[1728389843554,0.079916,62587.0,62585.0,0.079918]
[1728389843748,0.1505,62586.0,62585.0,0.079918]
[1728389844054,0.1828,62586.0,62585.0,0.079918]
[1728389844638,0.2131,62586.0,62585.0,0.079918]
[1728389845348,0.0941,62586.0,62585.0,0.082918]
[1728389846250,0.0618,62586.0,62585.0,0.082918]
[1728389846645,0.001,62586.0,62585.0,0.082918]
[1728389846844,0.002,62586.0,62585.0,0.084918]
[1728389847347,0.0622,62595.0,62585.0,0.20669637]
[1728389847649,0.0622,62595.0,62594.0,0.199907]
[1728389848739,0.0632,62595.0,62594.0,0.199907]
[1728389849447,0.0642,62595.0,62594.0,0.202907]
[1728389850045,0.0323,62595.0,62594.0,0.202907]
[1728389850350,0.079906,62596.0,62595.0,0.079906]
[1728389851452,0.12,62598.0,62594.0,0.17473998]
[1728389851650,0.199906,62595.0,62594.0,0.003]
[1728389851851,0.0312,62599.0,62593.0,0.04773998]
[1728389851852,0.002,62596.0,62595.0,0.079906]
[1728389852051,0.002,62596.0,62595.0,0.199906]
[1728389852556,0.001,62596.0,62595.0,0.12764598]
[1728389852945,0.001,62596.0,62595.0,0.079906]
[1728389853258,0.001,62596.0,62595.0,0.12764598]
[1728389854140,0.001,62596.0,62595.0,0.24764598]
[1728389854544,0.080905,62596.0,62595.0,0.12764598]
[1728389854750,0.081905,62596.0,62595.0,0.005]
[1728389858975,0.201905,62596.0,62595.0,0.005]
[1728389860874,0.562705,62596.0,62595.0,0.005]
[1728389865176,0.201905,62596.0,62595.0,0.005]
[1728389865479,0.562705,62596.0,62595.0,0.005]
[1728389866573,0.562705,62596.0,62588.0,0.0772144]
[1728389866574,1.56208,62596.0,62588.0,0.0772144]
[1728389866777,0.560714,62589.0,62588.0,0.02947442]
[1728389866970,0.079916,62587.0,62586.0,0.079917]
[1728389867172,0.07992,62584.0,62583.0,0.12765998]
[1728389867366,0.07992,62584.0,62583.0,0.07992]
[1728389868570,0.08092,62584.0,62583.0,0.08392]
[1728389869374,0.08092,62584.0,62583.0,0.13165998]
[1728389869875,0.08192,62584.0,62583.0,0.13565998]
[1728389870573,0.08192,62584.0,62583.0,0.08792]
[1728389871977,0.08192,62584.0,62583.0,0.008]
[1728389878767,0.44272,62584.0,62583.0,0.008]
[1728389879579,0.44272,62584.0,62583.0,0.087921]
[1728389881086,0.44272,62584.0,62583.0,0.207921]
[1728389882883,0.44272,62584.0,62583.0,0.087921]
[1728389883672,0.08192,62584.0,62583.0,0.087921]
[1728389885185,0.08192,62584.0,62583.0,0.13566098]
[1728389885481,0.08192,62584.0,62583.0,0.087921]
[1728389889979,0.08192,62584.0,62583.0,0.008]
[1728389893189,1.16128,62584.0,62583.0,0.008]
[1728389896299,1.16128,62584.0,62579.0,0.04773998]
[1728389896300,0.079923,62582.0,62579.0,0.04773998]
[1728389896590,0.079923,62582.0,62578.0,0.00239636]
[1728389896591,0.199926,62579.0,62578.0,0.00239636]
[1728389897987,0.200926,62579.0,62578.0,0.00639636]
[1728389899195,0.201926,62579.0,62578.0,0.00639636]
[1728389903597,0.23060164,62579.0,62578.0,0.00639636]
[1728389903790,0.59140164,62579.0,62578.0,0.00639636]
[1728389905597,0.59140164,62579.0,62578.0,0.07030059]
[1728389906187,0.59140164,62579.0,62578.0,0.00639636]
[1728389906384,0.59140164,62579.0,62578.0,0.07030989]
[1728389906899,0.59140164,62579.0,62578.0,0.00639636]
[1728389907702,0.562726,62579.0,62578.0,0.00639636]
[1728389908299,0.442726,62579.0,62578.0,0.08632436]
[1728389909604,0.562726,62579.0,62578.0,0.00639636]
[1728389917312,0.562726,62579.0,62578.0,0.004]
[1728389919214,0.079928,62578.0,62577.0,0.079929]
[1728389919621,0.440728,62578.0,62577.0,0.079929]
[1728389919811,0.440728,62578.0,62577.0,0.12786056]
[1728389920516,0.440728,62578.0,62577.0,0.079929]
[1728389921012,0.442728,62578.0,62577.0,0.080929]
[1728389922009,0.442728,62578.0,62577.0,0.200929]
[1728389922211,0.3628,62578.0,62577.0,0.200929]
[1728389923219,0.002,62578.0,62577.0,0.561729]
[1728389923416,0.002,62578.0,62577.0,0.592429]
[1728389924720,0.440715,62589.0,62577.0,0.64038488]
[1728389924910,0.079918,62587.0,62586.0,0.079916]
[1728389925116,0.00239687,62600.0,62588.0,0.12]
[1728389925117,0.12,62599.0,62588.0,0.12]
[1728389925417,0.079907,62596.0,62595.0,0.079905]
[1728389925608,0.12,62596.0,62593.0,0.079908]
[1728389925806,0.3608,62595.0,62593.0,0.079908]
[1728389926011,0.079907,62594.0,62593.0,0.079908]
[1728389926515,0.3608,62595.0,62594.0,0.079907]
[1728389928112,0.013,62595.0,62594.0,0.079907]
[1728389928816,0.002,62595.0,62594.0,0.082907]
[1728389941726,0.081906,62595.0,62594.0,0.003]
[1728389942040,0.112606,62595.0,62594.0,0.003]
[1728389942331,0.473406,62595.0,62594.0,0.003]
[1728389952546,0.5307279,62595.0,62594.0,0.003]
[1728389952732,0.473406,62595.0,62594.0,0.003]
[1728389953937,0.079911,62591.0,62588.0,0.06394117]
[1728389954133,0.079911,62591.0,62585.0,0.079918]
[1728389954134,0.199914,62589.0,62587.0,0.04788821]
[1728389954437,0.265315,62588.0,62587.0,0.04788821]
[1728389955336,0.1854,62588.0,62586.0,0.04788821]
[1728389955634,0.079916,62587.0,62586.0,0.12780621]
[1728389956142,0.079916,62587.0,62586.0,0.14385917]
[1728389956638,0.002,62588.0,62587.0,0.079916]
[1728389956942,0.002,62588.0,62587.0,0.199916]
[1728389957334,0.081915,62588.0,62587.0,0.199916]
[1728389957630,0.002,62588.0,62587.0,0.199916]
[1728389957841,0.001,62588.0,62587.0,0.199916]
[1728389958036,0.001,62588.0,62587.0,0.26385717]
[1728389958643,0.080915,62588.0,62587.0,0.199916]
[1728389958942,0.080915,62588.0,62587.0,0.079916]
[1728389959441,0.201915,62588.0,62587.0,0.079916]
[1728389962744,0.081915,62588.0,62587.0,0.079916]
[1728389972451,0.081915,62588.0,62587.0,0.127809]
[1728389975762,0.081915,62588.0,62587.0,0.079916]
[1728389976169,0.079916,62587.0,62586.0,0.3608]
[1728389976574,0.079916,62587.0,62586.0,0.440718]
[1728389977265,0.079916,62587.0,62586.0,0.079918]
[1728389977659,0.080916,62587.0,62586.0,0.079918]
[1728389978467,0.081916,62587.0,62586.0,0.079918]
[1728389980965,0.07992,62584.0,62583.0,0.0294484]
[1728389981174,0.19992,62584.0,62582.0,0.00239684]
[1728389981374,0.53115057,62583.0,62582.0,0.00239684]
[1728389981568,0.53115057,62583.0,62582.0,0.03141304]
[1728389981767,0.53115057,62583.0,62582.0,0.00239684]
[1728389982665,0.473821,62583.0,62582.0,0.00239684]
[1728389983567,0.474821,62583.0,62582.0,0.00239684]
[1728389983969,0.475821,62583.0,62582.0,0.00239684]
[1728389986879,0.115021,62583.0,62582.0,0.00239684]
[1728389987176,0.475821,62583.0,62582.0,0.00239684]
[1728389996381,0.115021,62583.0,62582.0,0.00239684]
[1728389996579,0.475821,62583.0,62582.0,0.00239684]
[1728390000686,0.442721,62583.0,62582.0,0.08231984]
[1728390000985,0.002,62583.0,62582.0,0.08231984]
[1728390001175,0.081921,62583.0,62582.0,0.08231984]
[1728390001375,0.002,62583.0,62582.0,0.08231984]
[1728390001587,0.201921,62583.0,62582.0,0.08231984]
[1728390001787,0.562721,62583.0,62582.0,0.00239684]
[1728390004875,0.562721,62583.0,62582.0,0.08231984]
[1728390005078,0.562721,62583.0,62582.0,0.00239684]
[1728390005887,0.562721,62583.0,62582.0,0.05028984]
[1728390008279,0.562721,62583.0,62582.0,0.00239684]
[1728390010882,0.442721,62583.0,62582.0,0.08231984]
[1728390011485,0.3628,62583.0,62582.0,0.08231984]
[1728390016406,0.002,62583.0,62582.0,0.08231984]
[1728390020987,0.002,62583.0,62582.0,0.14627211]
[1728390021188,0.002,62583.0,62582.0,0.14621359]
[1728390021502,0.002,62583.0,62582.0,0.16188647]
[1728390021796,0.002,62583.0,62582.0,0.20411]
[1728390022187,0.002,62583.0,62582.0,0.28394276]
[1728390023289,0.07991,62592.0,62591.0,0.07991]
[1728390024992,0.002,62592.0,62591.0,0.19991]
[1728390025991,0.002,62592.0,62591.0,0.24780053]
[1728390026183,0.002,62592.0,62591.0,0.24777587]
[1728390026389,0.002,62592.0,62591.0,0.19991]
[1728390027897,0.002,62592.0,62591.0,0.10875808]
[1728390034206,0.08191,62592.0,62591.0,0.10875808]
[1728390036203,0.002,62592.0,62591.0,0.10875808]
[1728390037205,0.0339,62592.0,62591.0,0.10875808]
[1728390037397,0.11381,62592.0,62591.0,0.10875808]
[1728390043400,0.23381,62592.0,62591.0,0.10875808]
[1728390047416,0.23381,62592.0,62591.0,0.02884808]
[1728390047616,0.23381,62592.0,62587.0,0.079916]
[1728390047617,0.1539,62592.0,62587.0,0.079916]
[1728390047814,0.1539,62592.0,62584.0,0.10917179]
[1728390047815,0.079919,62585.0,62584.0,0.10917179]
[1728390048017,0.199919,62585.0,62584.0,0.10917179]
[1728390048316,0.199919,62585.0,62576.0,0.36216]
[1728390048511,0.079929,62579.0,62578.0,0.079927]
[1728390048710,0.199929,62579.0,62578.0,0.079927]
[1728390050110,0.12,62579.0,62576.0,0.3895116]
[1728390050409,0.079929,62577.0,62576.0,0.4694416]
[1728390051024,0.079929,62577.0,62576.0,0.59124848]
[1728390051219,0.079929,62577.0,62576.0,0.54927436]
[1728390051412,0.079929,62577.0,62576.0,0.4694416]
[1728390051617,0.079929,62577.0,62576.0,0.54927436]
[1728390051928,0.080929,62577.0,62576.0,0.54927436]
[1728390052312,0.080929,62577.0,62576.0,0.4694416]
[1728390052512,0.081929,62577.0,62576.0,0.4694416]
[1728390053221,0.081929,62577.0,62576.0,0.5332811]
[1728390054216,0.081929,62577.0,62576.0,0.6532811]
[1728390055325,0.081929,62577.0,62576.0,0.5894416]
[1728390056827,0.081929,62577.0,62576.0,0.2286416]
[1728390059319,0.081929,62577.0,62576.0,0.1086416]
[1728390059523,0.081929,62577.0,62576.0,0.2286416]
[1728390064026,0.081929,62577.0,62576.0,0.1086416]
[1728390064526,0.081929,62577.0,62576.0,0.0287116]
[1728390064733,0.081929,62577.0,62574.0,0.0638395]
[1728390064734,0.07993,62576.0,62573.0,0.04784037]
[1728390065029,0.079935,62572.0,62571.0,0.13017342]
[1728390065231,0.079935,62572.0,62571.0,0.1115739]
[1728390068228,0.081935,62572.0,62571.0,0.1115739]
[1728390073123,0.081935,62572.0,62571.0,0.15941427]
[1728390074235,0.081935,62572.0,62571.0,0.07947827]
[1728390074236,0.201935,62572.0,62571.0,0.07947827]
[1728390074430,0.201935,62572.0,62571.0,0.0316379]
[1728390075238,0.201935,62572.0,62571.0,0.07947827]
[1728390075535,0.201935,62572.0,62571.0,0.0316379]
[1728390076232,0.201935,62572.0,62571.0,0.07947827]
[1728390077244,0.200935,62572.0,62571.0,0.0316379]
[1728390077534,0.201935,62572.0,62571.0,0.0316379]
[1728390082628,0.201935,62572.0,62571.0,0.0954774]
[1728390083027,0.201935,62572.0,62571.0,0.0316379]
[1728390083221,0.201935,62572.0,62571.0,0.0954774]
[1728390084435,0.201935,62572.0,62571.0,0.0316379]
[1728390084938,0.201935,62572.0,62571.0,0.07955705]
[1728390085328,0.201935,62572.0,62571.0,0.0316379]
[1728390085734,0.201935,62572.0,62571.0,0.07956234]
[1728390086839,0.201935,62572.0,62571.0,0.0316379]
[1728390091137,0.562735,62572.0,62571.0,0.0316379]
[1728390092331,0.562735,62572.0,62566.0,0.079942]
[1728390092536,0.079947,62564.0,62563.0,0.079946]
[1728390092834,0.079957,62557.0,62556.0,0.079954]
[1728390093141,0.199957,62555.0,62554.0,0.440758]
[1728390093833,0.199957,62555.0,62554.0,0.47002527]
[1728390094934,0.079957,62555.0,62554.0,0.47002527]
[1728390095135,0.081957,62555.0,62554.0,0.47002527]
[1728390095936,0.201957,62555.0,62554.0,0.47002527]
[1728390096343,0.201957,62555.0,62554.0,0.53388742]
[1728390097646,0.201957,62555.0,62554.0,0.45392942]
[1728390098338,0.201957,62555.0,62554.0,0.39006727]
[1728390098847,0.201957,62555.0,62554.0,0.45392942]
[1728390099240,0.081957,62555.0,62554.0,0.45392942]
[1728390099439,0.201957,62555.0,62554.0,0.45392942]
[1728390100036,0.201957,62555.0,62554.0,0.53388742]
[1728390100350,0.201957,62555.0,62554.0,0.47002527]
[1728390101534,0.201957,62555.0,62554.0,0.39006727]
[1728390108743,0.201957,62555.0,62554.0,0.02926727]
[1728390109048,0.079958,62554.0,62553.0,0.079959]
[1728390109442,0.079961,62552.0,62551.0,0.0324]
[1728390109740,0.199961,62552.0,62551.0,0.0324]
[1728390109945,0.199961,62552.0,62551.0,0.112362]
[1728390110245,0.199961,62552.0,62551.0,0.17622415]
[1728390111155,0.200961,62552.0,62551.0,0.17622415]
[1728390111344,0.200961,62552.0,62551.0,0.14141047]
[1728390111743,0.201961,62552.0,62551.0,0.14141047]
[1728390112359,0.081961,62552.0,62551.0,0.14141047]
[1728390112653,0.079954,62558.0,62557.0,0.079955]
[1728390112852,0.079954,62558.0,62557.0,0.199955]
[1728390113360,0.07995,62561.0,62557.0,0.12]
[1728390113550,0.07995,62561.0,62560.0,0.079951]
[1728390113857,0.079947,62563.0,62562.0,0.079948]
[1728390114044,0.079947,62563.0,62562.0,0.440748]
[1728390114849,0.079947,62563.0,62562.0,0.50457257]
[1728390115352,0.079947,62563.0,62562.0,0.440748]
[1728390115545,0.079947,62563.0,62562.0,0.50457257]
[1728390115740,0.080947,62563.0,62562.0,0.50557257]
[1728390115942,0.001,62563.0,62562.0,0.50557257]
[1728390116152,0.001,62563.0,62562.0,0.441748]
[1728390116359,0.002,62563.0,62562.0,0.441748]
[1728390118254,0.002,62563.0,62562.0,0.46990819]
[1728390119955,0.002,62563.0,62562.0,0.10910819]
[1728390120158,0.002,62563.0,62562.0,0.46990819]
[1728390125360,0.002,62563.0,62562.0,0.51779376]
[1728390125557,0.002,62563.0,62562.0,0.46990819]
[1728390125954,0.002,62563.0,62562.0,0.10910819]
[1728390126262,0.002,62563.0,62562.0,0.46990819]
[1728390132255,0.081947,62563.0,62562.0,0.46990819]
[1728390133568,0.081947,62563.0,62562.0,0.10910819]
[1728390133762,0.081947,62563.0,62562.0,0.46990819]
[1728390137566,0.002,62563.0,62562.0,0.46990819]
[1728390138470,0.081947,62563.0,62562.0,0.46990819]
[1728390138661,0.002,62563.0,62562.0,0.46990819]
[1728390139465,0.081947,62563.0,62562.0,0.46990819]
[1728390139668,0.002,62563.0,62562.0,0.46990819]
[1728390140062,0.00088,62572.0,62569.0,0.079939]
[1728390140370,0.232631,62576.0,62570.0,0.3608]
[1728390140669,0.079937,62571.0,62570.0,0.3608]
[1728390140869,0.079937,62571.0,62570.0,0.42464743]
[1728390141069,0.079937,62571.0,62570.0,0.3608]
[1728390141265,0.079937,62571.0,62570.0,0.560738]
[1728390141570,0.079937,62571.0,62570.0,0.440738]
[1728390142064,0.080937,62571.0,62570.0,0.441738]
[1728390142274,0.001,62571.0,62570.0,0.441738]
[1728390142863,0.002,62571.0,62570.0,0.441738]
[1728390143259,0.002,62571.0,62570.0,0.47035294]
[1728390144071,0.081937,62571.0,62570.0,0.47035294]
[1728390150779,0.081937,62571.0,62570.0,0.10955294]
[1728390151182,0.081937,62571.0,62570.0,0.02961494]
[1728390151990,0.081937,62571.0,62570.0,0.10955294]
[1728390152886,0.002,62571.0,62570.0,0.10955294]
[1728390153089,0.002,62571.0,62570.0,0.47035294]
[1728390154600,0.00239826,62577.0,62576.0,0.07993]
[1728390155094,0.00239826,62577.0,62576.0,0.12785626]
[1728390155296,0.00239826,62577.0,62576.0,0.07993]
[1728390155800,0.00439826,62577.0,62576.0,0.08193]
[1728390156495,0.00439826,62577.0,62576.0,0.44273]
[1728390157306,0.00439826,62577.0,62576.0,0.44373]
[1728390157903,0.00339826,62577.0,62576.0,0.44373]
[1728390158104,0.00439826,62577.0,62576.0,0.44473]
[1728390160494,0.08432726,62577.0,62576.0,0.3648]
[1728390161000,0.08432726,62577.0,62576.0,0.44473]
[1728390162503,0.08432726,62577.0,62576.0,0.44373]
[1728390163896,0.08332726,62577.0,62576.0,0.07993]
[1728390164098,0.08432726,62577.0,62576.0,0.08293]
[1728390164495,0.08332726,62577.0,62576.0,0.07993]
[1728390164805,0.08432726,62577.0,62576.0,0.08293]
[1728390165198,0.08332726,62577.0,62576.0,0.08293]
[1728390165499,0.08432726,62577.0,62576.0,0.08293]
[1728390174509,0.00439826,62577.0,62576.0,0.08293]
[1728390174812,0.00439826,62577.0,62576.0,0.20293]
[1728390176206,0.00439826,62577.0,62576.0,0.2508537]
[1728390176605,0.00439826,62577.0,62576.0,0.20293]
[1728390177608,0.00439826,62577.0,62576.0,0.26683536]
[1728390178013,0.00439826,62577.0,62576.0,0.26678654]
[1728390178407,0.00439826,62577.0,62576.0,0.20293]
[1728390182912,0.00439826,62577.0,62576.0,0.08293]
[1728390186412,0.08432726,62577.0,62576.0,0.08293]
[1728390187007,0.08432726,62577.0,62576.0,0.44373]
[1728390191119,0.08432726,62577.0,62576.0,0.56373]
[1728390194221,0.08432726,62577.0,62576.0,0.20293]
[1728390194422,0.08432726,62577.0,62576.0,0.56373]
[1728390194622,0.08432726,62577.0,62576.0,0.44373]
[1728390195521,0.08432726,62577.0,62576.0,0.08293]
[1728390195820,0.08432726,62577.0,62576.0,0.44373]
[1728390197322,0.00439826,62577.0,62576.0,0.44373]
[1728390199221,0.081929,62577.0,62576.0,0.44373]
[1728390199427,0.002,62577.0,62576.0,0.44373]
[1728390202128,0.081929,62577.0,62576.0,0.44373]
[1728390206733,0.081929,62577.0,62576.0,0.3638]
[1728390206933,0.081929,62577.0,62576.0,0.003]
[1728390207124,0.081929,62577.0,62576.0,0.05095734]
[1728390207324,0.081929,62577.0,62576.0,0.003]
[1728390221152,0.081929,62577.0,62576.0,0.08293]
[1728390222450,0.081929,62577.0,62576.0,0.44373]
[1728390222752,0.081929,62577.0,62576.0,0.64537316]
[1728390223055,0.081929,62577.0,62576.0,0.5655404]
[1728390223753,0.081929,62577.0,62576.0,0.44373]
[1728390225352,0.081929,62577.0,62576.0,0.08293]
[1728390225557,0.081929,62577.0,62576.0,0.44373]
[1728390225965,0.002,62577.0,62576.0,0.44373]
[1728390226451,0.07992,62585.0,62584.0,0.07992]
[1728390226651,0.13724774,62585.0,62584.0,0.19992]
[1728390227555,0.079916,62587.0,62586.0,0.079917]
[1728390228552,0.079916,62587.0,62586.0,0.10838719]
[1728390229161,0.5139,62593.0,62589.0,0.079914]
[1728390229162,0.3616,62593.0,62589.0,0.079914]
[1728390229364,0.3608,62593.0,62589.0,0.199914]
[1728390230648,0.01139701,62590.0,62589.0,0.199914]
[1728390231961,0.02139701,62590.0,62589.0,0.199914]
[1728390233859,0.01139701,62590.0,62589.0,0.199914]
[1728390234956,0.01139701,62590.0,62589.0,0.560714]
[1728390235158,0.0023965,62604.0,62589.0,0.560714]
[1728390235159,0.0023965,62604.0,62589.0,1.640034]
[1728390235359,0.0023965,62604.0,62603.0,0.12]
[1728390236970,0.0163965,62604.0,62603.0,0.121]
[1728390237459,0.0303965,62604.0,62603.0,0.121]
[1728390238365,0.0303965,62604.0,62603.0,0.200896]
[1728390238563,0.0303965,62604.0,62603.0,0.232596]
[1728390238872,0.0303965,62604.0,62603.0,0.263996]
[1728390239071,0.0303965,62604.0,62603.0,0.29322956]
[1728390239770,0.0163965,62604.0,62603.0,0.29222956]
[1728390239970,0.0273965,62604.0,62603.0,0.29322956]
[1728390240670,0.0133965,62604.0,62603.0,0.29222956]
[1728390240863,0.0253965,62604.0,62603.0,0.29322956]
[1728390244676,0.023,62604.0,62603.0,0.29322956]
[1728390251278,0.023,62604.0,62603.0,0.26282956]